[Event "Titled Tuesday Blitz March 15 Late 2022"]
[White "Elissalt Cardenas, Hector"]
[Black "Chyngyz, Sultai"]
[WhiteFideId "3500632"]
[BlackFideId "13803158"]
[WhiteElo "2159"]
[BlackElo "1365"]
[Result "1-0"]
[Round "07"]
[TimeControl "180+1"]
[Date "2022.03.16"]
[WhiteClock "0:01:12"]
[BlackClock "0:01:04"]

1. d4 {[%clk 0:03:00]}  Nf6 {[%clk 0:02:54]} 2. c4 {[%clk 0:02:57]}  g6 {[%clk 0:02:53]} 3. Nc3 {[%clk 0:02:53]}  Bg7 {[%clk 0:02:52]} 4. e4 {[%clk 0:02:50]}  d6 {[%clk 0:02:50]} 5. Nge2 {[%clk 0:02:48]}  O-O {[%clk 0:02:47]} 6. Ng3 {[%clk 0:02:46]}  e5 {[%clk 0:02:44]} 7. d5 {[%clk 0:02:42]}  a5 {[%clk 0:02:41]} 8. Be2 {[%clk 0:02:34]}  Na6 {[%clk 0:02:38]} 9. Bg5 {[%clk 0:02:27]}  Nc5 {[%clk 0:02:31]} 10. Qd2 {[%clk 0:02:16]}  a4 {[%clk 0:02:03]} 11. h4 {[%clk 0:02:04]}  h5 {[%clk 0:02:01]} 12. f4 {[%clk 0:01:47]}  exf4 {[%clk 0:01:47]} 13. Qxf4 {[%clk 0:01:46]}  Bg4 {[%clk 0:01:35]} 14. O-O {[%clk 0:01:45]}  Bxe2 {[%clk 0:01:35]} 15. Ngxe2 {[%clk 0:01:33]}  Ncd7 {[%clk 0:01:27]} 16. c5 {[%clk 0:01:18]}  Kh7 {[%clk 0:01:04]} 17. c6 {[%clk 0:01:12]} 1-0


[Site "https://www.chess.com"]

[Event "Titled Tuesday Blitz March 15 Late 2022"]
[White "Farmani Anosheh, Armin"]
[Black "Sokolovsky, Yahli"]
[WhiteFideId "24613240"]
[BlackFideId "2820242"]
[WhiteElo "2289"]
[BlackElo "1770"]
[Result "0-1"]
[Round "07"]
[TimeControl "180+1"]
[Date "2022.03.16"]
[WhiteClock "0:00:08"]
[BlackClock "0:00:09"]

1. e4 {[%clk 0:03:00]}  g6 {[%clk 0:02:58]} 2. d4 {[%clk 0:02:57]}  Bg7 {[%clk 0:02:59]} 3. c4 {[%clk 0:02:57]}  d6 {[%clk 0:02:59]} 4. Nc3 {[%clk 0:02:56]}  Nf6 {[%clk 0:02:56]} 5. f3 {[%clk 0:02:54]}  e5 {[%clk 0:02:48]} 6. Nge2 {[%clk 0:02:54]}  Nc6 {[%clk 0:02:47]} 7. d5 {[%clk 0:02:54]}  Ne7 {[%clk 0:02:48]} 8. Be3 {[%clk 0:02:53]}  Nd7 {[%clk 0:02:47]} 9. Qd2 {[%clk 0:02:52]}  f5 {[%clk 0:02:41]} 10. Nc1 {[%clk 0:02:48]}  f4 {[%clk 0:02:40]} 11. Bf2 {[%clk 0:02:48]}  a5 {[%clk 0:02:38]} 12. Nd3 {[%clk 0:02:48]}  b6 {[%clk 0:02:37]} 13. g3 {[%clk 0:02:28]}  O-O {[%clk 0:02:26]} 14. gxf4 {[%clk 0:02:25]}  exf4 {[%clk 0:02:27]} 15. Nxf4 {[%clk 0:02:18]}  Ne5 {[%clk 0:02:20]} 16. Be2 {[%clk 0:02:16]}  Bh6 {[%clk 0:02:14]} 17. Be3 {[%clk 0:02:12]}  g5 {[%clk 0:01:14]} 18. Rg1 {[%clk 0:01:47]}  Kh8 {[%clk 0:01:10]} 19. Ne6 {[%clk 0:01:46]}  Bxe6 {[%clk 0:01:09]} 20. dxe6 {[%clk 0:01:47]}  Nxf3+ {[%clk 0:01:01]} 21. Bxf3 {[%clk 0:01:47]}  Rxf3 {[%clk 0:01:02]} 22. Bxg5 {[%clk 0:01:44]}  Bxg5 {[%clk 0:00:57]} 23. Qxg5 {[%clk 0:01:43]}  Ng6 {[%clk 0:00:53]} 24. Qh5 {[%clk 0:01:14]}  Qf6 {[%clk 0:00:42]} 25. O-O-O {[%clk 0:00:45]}  c6 {[%clk 0:00:22]} 26. Rxg6 {[%clk 0:00:34]}  Rxc3+ {[%clk 0:00:21]} 27. bxc3 {[%clk 0:00:34]}  Qxc3+ {[%clk 0:00:14]} 28. Kb1 {[%clk 0:00:35]}  Qb4+ {[%clk 0:00:15]} 29. Kc2 {[%clk 0:00:25]}  Qxc4+ {[%clk 0:00:15]} 30. Kd2 {[%clk 0:00:25]}  Qd4+ {[%clk 0:00:14]} 31. Kc1 {[%clk 0:00:15]}  Qc4+ {[%clk 0:00:12]} 32. Kb1 {[%clk 0:00:15]}  Qxe4+ {[%clk 0:00:12]} 33. Kc1 {[%clk 0:00:13]}  Qxg6 {[%clk 0:00:12]} 34. Qxg6 {[%clk 0:00:14]}  hxg6 {[%clk 0:00:13]} 35. Rxd6 {[%clk 0:00:14]}  Kg7 {[%clk 0:00:09]} 36. Rxc6 {[%clk 0:00:14]}  Rb8 {[%clk 0:00:10]} 37. Kc2 {[%clk 0:00:10]}  Kf6 {[%clk 0:00:10]} 38. Kd3 {[%clk 0:00:10]}  b5 {[%clk 0:00:10]} 39. Kd4 {[%clk 0:00:08]}  b4 {[%clk 0:00:09]} 40. Kc4 {[%clk 0:00:08]}  a4 {[%clk 0:00:09]} 0-1


[Site "https://www.chess.com"]

[Event "Titled Tuesday Blitz March 15 Late 2022"]
[White "Foisor, Sabina-Francesca"]
[Black "Torres Hernandez, Leslie Carolin"]
[WhiteFideId "1212915"]
[BlackFideId "8400504"]
[WhiteElo "2243"]
[BlackElo "1920"]
[Result "0-1"]
[Round "07"]
[TimeControl "180+1"]
[Date "2022.03.16"]
[WhiteClock "0:00:03"]
[BlackClock "0:00:14"]

1. d4 {[%clk 0:03:00]}  Nf6 {[%clk 0:02:56]} 2. c4 {[%clk 0:02:59]}  e6 {[%clk 0:02:45]} 3. Nf3 {[%clk 0:02:58]}  Bb4+ {[%clk 0:02:45]} 4. Bd2 {[%clk 0:02:57]}  Bxd2+ {[%clk 0:02:46]} 5. Qxd2 {[%clk 0:02:58]}  b6 {[%clk 0:02:46]} 6. Nc3 {[%clk 0:02:56]}  Bb7 {[%clk 0:02:45]} 7. e3 {[%clk 0:02:56]}  d6 {[%clk 0:02:41]} 8. Be2 {[%clk 0:02:53]}  Nbd7 {[%clk 0:02:39]} 9. O-O {[%clk 0:02:50]}  Qe7 {[%clk 0:02:38]} 10. b4 {[%clk 0:02:40]}  O-O {[%clk 0:02:37]} 11. a4 {[%clk 0:02:38]}  a5 {[%clk 0:02:36]} 12. b5 {[%clk 0:02:27]}  e5 {[%clk 0:02:32]} 13. Qc2 {[%clk 0:02:03]}  Rfe8 {[%clk 0:02:27]} 14. Rfe1 {[%clk 0:02:00]}  Rac8 {[%clk 0:02:15]} 15. Rac1 {[%clk 0:01:59]}  g6 {[%clk 0:01:46]} 16. h3 {[%clk 0:01:33]}  Kg7 {[%clk 0:01:42]} 17. Nd2 {[%clk 0:01:30]}  Rg8 {[%clk 0:01:23]} 18. Bf3 {[%clk 0:01:24]}  Bxf3 {[%clk 0:01:16]} 19. Nxf3 {[%clk 0:01:25]}  e4 {[%clk 0:01:13]} 20. Nd2 {[%clk 0:01:23]}  Rce8 {[%clk 0:01:13]} 21. Nd5 {[%clk 0:00:52]}  Qd8 {[%clk 0:01:05]} 22. f3 {[%clk 0:00:37]}  exf3 {[%clk 0:01:05]} 23. Nxf3 {[%clk 0:00:35]}  Ne4 {[%clk 0:00:56]} 24. Nd2 {[%clk 0:00:20]}  f5 {[%clk 0:00:57]} 25. Nxe4 {[%clk 0:00:20]}  Rxe4 {[%clk 0:00:57]} 26. Nc3 {[%clk 0:00:20]}  Re7 {[%clk 0:00:56]} 27. e4 {[%clk 0:00:20]}  Rge8 {[%clk 0:00:56]} 28. Qd2 {[%clk 0:00:15]}  fxe4 {[%clk 0:00:54]} 29. Nd5 {[%clk 0:00:16]}  Re6 {[%clk 0:00:52]} 30. Re3 {[%clk 0:00:14]}  Nf6 {[%clk 0:00:51]} 31. Nf4 {[%clk 0:00:14]}  R6e7 {[%clk 0:00:50]} 32. Rce1 {[%clk 0:00:14]}  Qd7 {[%clk 0:00:48]} 33. d5 {[%clk 0:00:15]}  Qf5 {[%clk 0:00:42]} 34. Ne6+ {[%clk 0:00:15]}  Rxe6 {[%clk 0:00:43]} 35. dxe6 {[%clk 0:00:15]}  Rxe6 {[%clk 0:00:43]} 36. Qf2 {[%clk 0:00:15]}  Qc5 {[%clk 0:00:42]} 37. Rc3 {[%clk 0:00:13]}  Qe5 {[%clk 0:00:39]} 38. Rg3 {[%clk 0:00:12]}  Nh5 {[%clk 0:00:37]} 39. Rge3 {[%clk 0:00:11]}  Nf6 {[%clk 0:00:33]} 40. Kh1 {[%clk 0:00:09]}  Qd4 {[%clk 0:00:30]} 41. Rf1 {[%clk 0:00:07]}  Qxc4 {[%clk 0:00:29]} 42. Re2 {[%clk 0:00:08]}  Qxa4 {[%clk 0:00:28]} 43. Rc2 {[%clk 0:00:08]}  e3 {[%clk 0:00:28]} 44. Rxc7+ {[%clk 0:00:07]}  Kg8 {[%clk 0:00:26]} 45. Rc8+ {[%clk 0:00:04]}  Kg7 {[%clk 0:00:23]} 46. Qf3 {[%clk 0:00:04]}  Qe4 {[%clk 0:00:18]} 47. Qe2 {[%clk 0:00:03]}  Nh5 {[%clk 0:00:14]} 0-1


[Site "https://www.chess.com"]

[Event "Titled Tuesday Blitz March 15 Late 2022"]
[White "Golubev, Mikhail"]
[Black "Batsiashvili, Nino"]
[WhiteFideId "14100983"]
[BlackFideId "13602993"]
[WhiteElo "2374"]
[BlackElo "2192"]
[Result "1-0"]
[Round "07"]
[TimeControl "180+1"]
[Date "2022.03.16"]
[WhiteClock "0:00:11"]
[BlackClock "0:00:08"]

1. e4 {[%clk 0:02:50]}  c6 {[%clk 0:02:56]} 2. d4 {[%clk 0:02:49]}  d5 {[%clk 0:02:57]} 3. e5 {[%clk 0:02:49]}  c5 {[%clk 0:02:56]} 4. dxc5 {[%clk 0:02:48]}  e6 {[%clk 0:02:56]} 5. Be3 {[%clk 0:02:47]}  Nd7 {[%clk 0:02:56]} 6. Nf3 {[%clk 0:02:41]}  Bxc5 {[%clk 0:02:54]} 7. Bxc5 {[%clk 0:02:40]}  Nxc5 {[%clk 0:02:55]} 8. Nc3 {[%clk 0:02:34]}  Ne7 {[%clk 0:02:55]} 9. Qd4 {[%clk 0:02:29]}  b6 {[%clk 0:02:41]} 10. O-O-O {[%clk 0:01:56]}  O-O {[%clk 0:02:26]} 11. h4 {[%clk 0:01:45]}  Ba6 {[%clk 0:02:24]} 12. Bxa6 {[%clk 0:01:43]}  Nxa6 {[%clk 0:02:25]} 13. h5 {[%clk 0:01:42]}  h6 {[%clk 0:02:02]} 14. g4 {[%clk 0:01:37]}  Rc8 {[%clk 0:02:02]} 15. g5 {[%clk 0:01:28]}  Nf5 {[%clk 0:02:02]} 16. Qd2 {[%clk 0:01:23]}  Nb4 {[%clk 0:01:32]} 17. gxh6 {[%clk 0:01:16]}  Nxh6 {[%clk 0:01:33]} 18. Rdg1 {[%clk 0:01:13]}  Kh8 {[%clk 0:01:21]} 19. Rxg7 {[%clk 0:01:05]}  Nf5 {[%clk 0:01:07]} 20. Rhg1 {[%clk 0:01:00]}  Rxc3 {[%clk 0:01:00]} 21. bxc3 {[%clk 0:00:54]}  Nxa2+ {[%clk 0:00:57]} 22. Kb2 {[%clk 0:00:53]}  Nxc3 {[%clk 0:00:57]} 23. Kxc3 {[%clk 0:00:33]}  Qc7+ {[%clk 0:00:45]} 24. Kb2 {[%clk 0:00:30]}  Qc4 {[%clk 0:00:43]} 25. Ng5 {[%clk 0:00:20]}  Kxg7 {[%clk 0:00:37]} 26. Nxe6+ {[%clk 0:00:19]}  Kh8 {[%clk 0:00:30]} 27. Nxf8 {[%clk 0:00:19]}  Qb5+ {[%clk 0:00:22]} 28. Kc1 {[%clk 0:00:19]}  Qa4 {[%clk 0:00:20]} 29. Qc3 {[%clk 0:00:13]}  Qf4+ {[%clk 0:00:19]} 30. Kb2 {[%clk 0:00:12]}  d4 {[%clk 0:00:17]} 31. Qc8 {[%clk 0:00:12]}  d3 {[%clk 0:00:08]} 32. Ng6+ {[%clk 0:00:11]}  Kh7 {[%clk 0:00:08]} 33. Qh8# {[%clk 0:00:11]} 1-0


[Site "https://www.chess.com"]

[Event "Titled Tuesday Blitz March 15 Late 2022"]
[White "Hess, Robert"]
[Black "Tabatabaei, M. Amin"]
[WhiteFideId "2022036"]
[BlackFideId "12521213"]
[WhiteElo "2937"]
[BlackElo "2969"]
[Result "0-1"]
[Round "07"]
[TimeControl "180+1"]
[Date "2022.03.15"]
[WhiteClock "0:00:03"]
[BlackClock "0:00:17"]

1. b3 {[%clk 0:03:00]}  d5 {[%clk 0:02:53]} 2. Bb2 {[%clk 0:03:01]}  Bf5 {[%clk 0:02:54]} 3. d3 {[%clk 0:03:01]}  Nf6 {[%clk 0:02:52]} 4. Nd2 {[%clk 0:03:02]}  c5 {[%clk 0:02:53]} 5. h3 {[%clk 0:03:02]}  Nc6 {[%clk 0:02:52]} 6. Ngf3 {[%clk 0:03:02]}  h6 {[%clk 0:02:46]} 7. g4 {[%clk 0:03:02]}  Bh7 {[%clk 0:02:46]} 8. e3 {[%clk 0:02:57]}  Qc7 {[%clk 0:02:46]} 9. Rg1 {[%clk 0:02:54]}  e5 {[%clk 0:02:46]} 10. g5 {[%clk 0:02:52]}  hxg5 {[%clk 0:02:47]} 11. Nxg5 {[%clk 0:02:53]}  Bg6 {[%clk 0:02:43]} 12. Qe2 {[%clk 0:02:48]}  O-O-O {[%clk 0:02:42]} 13. Ne6 {[%clk 0:02:46]}  fxe6 {[%clk 0:02:41]} 14. Rxg6 {[%clk 0:02:46]}  Kb8 {[%clk 0:02:39]} 15. O-O-O {[%clk 0:02:45]}  Qf7 {[%clk 0:02:39]} 16. Rg3 {[%clk 0:02:34]}  Bd6 {[%clk 0:02:40]} 17. Nf3 {[%clk 0:02:25]}  e4 {[%clk 0:02:33]} 18. Ng5 {[%clk 0:02:25]}  Qe7 {[%clk 0:02:33]} 19. Rg1 {[%clk 0:02:20]}  exd3 {[%clk 0:02:33]} 20. cxd3 {[%clk 0:02:14]}  Be5 {[%clk 0:02:30]} 21. Kb1 {[%clk 0:02:04]}  a5 {[%clk 0:02:24]} 22. d4 {[%clk 0:01:59]}  Bd6 {[%clk 0:02:24]} 23. dxc5 {[%clk 0:01:52]}  Bxc5 {[%clk 0:02:24]} 24. Qb5 {[%clk 0:01:51]}  Rc8 {[%clk 0:02:13]} 25. Bd3 {[%clk 0:00:56]}  Nd7 {[%clk 0:01:44]} 26. Rc1 {[%clk 0:00:45]}  Rh4 {[%clk 0:01:34]} 27. Bc2 {[%clk 0:00:27]}  Rb4 {[%clk 0:01:14]} 28. Qe2 {[%clk 0:00:27]}  a4 {[%clk 0:01:14]} 29. Nf3 {[%clk 0:00:22]}  e5 {[%clk 0:01:13]} 30. Rg4 {[%clk 0:00:14]}  a3 {[%clk 0:00:55]} 31. Bc3 {[%clk 0:00:11]}  Rxg4 {[%clk 0:00:54]} 32. hxg4 {[%clk 0:00:12]}  e4 {[%clk 0:00:51]} 33. Nd2 {[%clk 0:00:08]}  Bb4 {[%clk 0:00:50]} 34. Ba1 {[%clk 0:00:06]}  Nce5 {[%clk 0:00:50]} 35. f3 {[%clk 0:00:03]}  Bxd2 {[%clk 0:00:27]} 36. Qxd2 {[%clk 0:00:03]}  Nxf3 {[%clk 0:00:28]} 37. Qxd5 {[%clk 0:00:04]}  Nb6 {[%clk 0:00:21]} 38. Qa5 {[%clk 0:00:03]}  Qc5 {[%clk 0:00:17]} 0-1


[Site "https://www.chess.com"]

[Event "Titled Tuesday Blitz March 15 Late 2022"]
[White "Hoffmann, Asa"]
[Black "Lewicki, Miroslaw"]
[WhiteFideId "2001470"]
[BlackFideId "1113380"]
[WhiteElo "2117"]
[BlackElo "2283"]
[Result "0-1"]
[Round "07"]
[TimeControl "180+1"]
[Date "2022.03.16"]
[WhiteClock "0:01:28"]
[BlackClock "0:01:14"]

1. d4 {[%clk 0:03:00]}  b6 {[%clk 0:03:00]} 2. e4 {[%clk 0:02:59]}  Bb7 {[%clk 0:03:00]} 3. Bd3 {[%clk 0:02:59]}  Nf6 {[%clk 0:03:01]} 4. Qe2 {[%clk 0:02:59]}  e6 {[%clk 0:03:00]} 5. Nd2 {[%clk 0:02:59]}  g6 {[%clk 0:03:01]} 6. Ngf3 {[%clk 0:02:58]}  Bg7 {[%clk 0:03:01]} 7. c3 {[%clk 0:02:57]}  O-O {[%clk 0:03:01]} 8. O-O {[%clk 0:02:53]}  c5 {[%clk 0:03:01]} 9. Re1 {[%clk 0:02:53]}  Nc6 {[%clk 0:02:59]} 10. a3 {[%clk 0:02:52]}  d6 {[%clk 0:02:55]} 11. b4 {[%clk 0:02:50]}  cxd4 {[%clk 0:02:40]} 12. cxd4 {[%clk 0:02:49]}  Nh5 {[%clk 0:02:38]} 13. Nb3 {[%clk 0:02:47]}  e5 {[%clk 0:02:33]} 14. d5 {[%clk 0:02:45]}  Ne7 {[%clk 0:02:34]} 15. g3 {[%clk 0:02:36]}  f5 {[%clk 0:02:31]} 16. Ng5 {[%clk 0:02:35]}  fxe4 {[%clk 0:02:26]} 17. Bxe4 {[%clk 0:02:32]}  Qd7 {[%clk 0:02:14]} 18. Rd1 {[%clk 0:02:24]}  Rac8 {[%clk 0:02:04]} 19. Ne6 {[%clk 0:02:23]}  Rf7 {[%clk 0:01:53]} 20. Bg5 {[%clk 0:02:21]}  Nxd5 {[%clk 0:01:40]} 21. Nxg7 {[%clk 0:02:03]}  Nc3 {[%clk 0:01:39]} 22. Qd3 {[%clk 0:01:49]}  Bxe4 {[%clk 0:01:37]} 23. Qxd6 {[%clk 0:01:44]}  Qh3 {[%clk 0:01:18]} 24. f3 {[%clk 0:01:33]}  Ne2+ {[%clk 0:01:14]} 25. Kf2 {[%clk 0:01:30]}  Rxf3+ {[%clk 0:01:14]} 26. Kxe2 {[%clk 0:01:30]}  Qg2+ {[%clk 0:01:13]} 27. Ke1 {[%clk 0:01:28]}  Rf1# {[%clk 0:01:14]} 0-1


[Site "https://www.chess.com"]

[Event "Titled Tuesday Blitz March 15 Late 2022"]
[White "Holt, Conrad"]
[Black "Sarana, Alexey"]
[WhiteFideId "2034387"]
[BlackFideId "24133795"]
[WhiteElo "2856"]
[BlackElo "3006"]
[Result "1-0"]
[Round "07"]
[TimeControl "180+1"]
[Date "2022.03.15"]
[WhiteClock "0:00:36"]
[BlackClock "0:00:09"]

1. d4 {[%clk 0:02:58]}  Nf6 {[%clk 0:02:42]} 2. c4 {[%clk 0:02:58]}  e6 {[%clk 0:02:43]} 3. Nc3 {[%clk 0:02:58]}  Bb4 {[%clk 0:02:43]} 4. Qc2 {[%clk 0:02:59]}  d5 {[%clk 0:02:42]} 5. cxd5 {[%clk 0:02:59]}  exd5 {[%clk 0:02:43]} 6. Bg5 {[%clk 0:02:58]}  h6 {[%clk 0:02:42]} 7. Bxf6 {[%clk 0:02:58]}  Qxf6 {[%clk 0:02:42]} 8. a3 {[%clk 0:02:58]}  Bxc3+ {[%clk 0:02:39]} 9. Qxc3 {[%clk 0:02:59]}  O-O {[%clk 0:02:38]} 10. e3 {[%clk 0:02:59]}  c6 {[%clk 0:02:39]} 11. Ne2 {[%clk 0:02:58]}  Bf5 {[%clk 0:02:38]} 12. Ng3 {[%clk 0:02:58]}  Nd7 {[%clk 0:02:39]} 13. Nxf5 {[%clk 0:02:57]}  Qxf5 {[%clk 0:02:40]} 14. Bd3 {[%clk 0:02:57]}  Qg5 {[%clk 0:02:36]} 15. O-O {[%clk 0:02:57]}  f5 {[%clk 0:02:37]} 16. b4 {[%clk 0:02:55]}  f4 {[%clk 0:02:35]} 17. e4 {[%clk 0:02:47]}  f3 {[%clk 0:02:34]} 18. g3 {[%clk 0:02:47]}  Nf6 {[%clk 0:02:02]} 19. e5 {[%clk 0:02:36]}  Ng4 {[%clk 0:02:02]} 20. h4 {[%clk 0:02:36]}  Qe7 {[%clk 0:01:36]} 21. Rfe1 {[%clk 0:02:32]}  Qe6 {[%clk 0:01:31]} 22. h5 {[%clk 0:02:29]}  Nxf2 {[%clk 0:01:25]} 23. Kxf2 {[%clk 0:02:26]}  Qh3 {[%clk 0:01:26]} 24. Rf1 {[%clk 0:01:35]}  Qg2+ {[%clk 0:01:25]} 25. Ke1 {[%clk 0:01:34]}  f2+ {[%clk 0:01:23]} 26. Ke2 {[%clk 0:01:22]}  Qf3+ {[%clk 0:01:05]} 27. Kd2 {[%clk 0:01:20]}  Qxh5 {[%clk 0:01:04]} 28. Be2 {[%clk 0:01:17]}  Qh2 {[%clk 0:01:04]} 29. Qe3 {[%clk 0:01:12]}  Rae8 {[%clk 0:01:01]} 30. Rac1 {[%clk 0:01:07]}  Rf5 {[%clk 0:00:54]} 31. b5 {[%clk 0:01:04]}  cxb5 {[%clk 0:00:47]} 32. Bxb5 {[%clk 0:01:04]}  Ref8 {[%clk 0:00:47]} 33. Be2 {[%clk 0:01:01]}  Rg5 {[%clk 0:00:44]} 34. g4 {[%clk 0:00:58]}  Rg6 {[%clk 0:00:43]} 35. e6 {[%clk 0:00:53]}  Qh4 {[%clk 0:00:24]} 36. e7 {[%clk 0:00:43]}  Re8 {[%clk 0:00:23]} 37. Rc8 {[%clk 0:00:39]}  Rxc8 {[%clk 0:00:08]} 38. e8=Q+ {[%clk 0:00:40]}  Rxe8 {[%clk 0:00:09]} 39. Qxe8+ {[%clk 0:00:40]}  Kh7 {[%clk 0:00:10]} 40. Bd3 {[%clk 0:00:40]}  Qxg4 {[%clk 0:00:08]} 41. Bxg6+ {[%clk 0:00:38]}  Qxg6 {[%clk 0:00:09]} 42. Qxg6+ {[%clk 0:00:38]}  Kxg6 {[%clk 0:00:10]} 43. Rxf2 {[%clk 0:00:38]}  h5 {[%clk 0:00:11]} 44. Ke3 {[%clk 0:00:38]}  b6 {[%clk 0:00:11]} 45. Kf4 {[%clk 0:00:38]}  Kf6 {[%clk 0:00:11]} 46. Rg2 {[%clk 0:00:37]}  a5 {[%clk 0:00:11]} 47. Rg5 {[%clk 0:00:37]}  h4 {[%clk 0:00:09]} 48. Rxd5 {[%clk 0:00:36]} 1-0


[Site "https://www.chess.com"]

[Event "Titled Tuesday Blitz March 15 Late 2022"]
[White "Issani, Nameer"]
[Black "Papasimakopoulos, Alexandros"]
[WhiteFideId "2619130"]
[BlackFideId "4244125"]
[WhiteElo "2562"]
[BlackElo "2340"]
[Result "1/2-1/2"]
[Round "07"]
[TimeControl "180+1"]
[Date "2022.03.16"]
[WhiteClock "0:00:23"]
[BlackClock "0:01:21"]

1. d4 {[%clk 0:02:59]}  e6 {[%clk 0:02:58]} 2. c4 {[%clk 0:02:57]}  Nf6 {[%clk 0:02:59]} 3. Nc3 {[%clk 0:02:58]}  Bb4 {[%clk 0:02:59]} 4. e3 {[%clk 0:02:58]}  O-O {[%clk 0:02:58]} 5. Ne2 {[%clk 0:02:59]}  c6 {[%clk 0:02:59]} 6. a3 {[%clk 0:02:59]}  Ba5 {[%clk 0:02:59]} 7. b4 {[%clk 0:02:59]}  Bc7 {[%clk 0:03:00]} 8. e4 {[%clk 0:02:53]}  d6 {[%clk 0:03:00]} 9. Qc2 {[%clk 0:02:52]}  e5 {[%clk 0:03:00]} 10. f3 {[%clk 0:02:46]}  a5 {[%clk 0:02:59]} 11. Rb1 {[%clk 0:02:45]}  axb4 {[%clk 0:02:57]} 12. axb4 {[%clk 0:02:46]}  Re8 {[%clk 0:02:52]} 13. Bg5 {[%clk 0:02:39]}  h6 {[%clk 0:02:51]} 14. Bh4 {[%clk 0:02:39]}  Bb6 {[%clk 0:02:44]} 15. d5 {[%clk 0:02:34]}  g5 {[%clk 0:02:36]} 16. Bf2 {[%clk 0:02:32]}  Bxf2+ {[%clk 0:02:35]} 17. Kxf2 {[%clk 0:02:33]}  cxd5 {[%clk 0:02:36]} 18. cxd5 {[%clk 0:02:29]}  Qb6+ {[%clk 0:02:35]} 19. Ke1 {[%clk 0:02:29]}  Na6 {[%clk 0:02:31]} 20. Qd2 {[%clk 0:02:15]}  Bd7 {[%clk 0:02:30]} 21. h4 {[%clk 0:02:12]}  Nh7 {[%clk 0:02:25]} 22. hxg5 {[%clk 0:02:11]}  hxg5 {[%clk 0:02:26]} 23. Ng3 {[%clk 0:01:59]}  f6 {[%clk 0:02:16]} 24. Nf5 {[%clk 0:01:47]}  Rac8 {[%clk 0:02:04]} 25. Nd1 {[%clk 0:01:33]}  Bxf5 {[%clk 0:02:02]} 26. exf5 {[%clk 0:01:33]}  Qd4 {[%clk 0:01:55]} 27. Ne3 {[%clk 0:01:25]}  Kg7 {[%clk 0:01:45]} 28. Ng4 {[%clk 0:01:19]}  Rc3 {[%clk 0:01:43]} 29. Rxh7+ {[%clk 0:01:07]}  Kxh7 {[%clk 0:01:40]} 30. Nxf6+ {[%clk 0:01:07]}  Kh6 {[%clk 0:01:39]} 31. Qxd4 {[%clk 0:01:06]}  exd4+ {[%clk 0:01:32]} 32. Nxe8 {[%clk 0:01:06]}  d3 {[%clk 0:01:31]} 33. Kd2 {[%clk 0:00:55]}  Ra3 {[%clk 0:01:26]} 34. Bxd3 {[%clk 0:00:53]}  Ra2+ {[%clk 0:01:27]} 35. Ke3 {[%clk 0:00:53]}  g4 {[%clk 0:01:26]} 36. fxg4 {[%clk 0:00:53]}  Kg5 {[%clk 0:01:26]} 37. Bxa6 {[%clk 0:00:53]}  bxa6 {[%clk 0:01:25]} 38. f6 {[%clk 0:00:54]}  Kg6 {[%clk 0:01:24]} 39. Nxd6 {[%clk 0:00:53]}  Kxf6 {[%clk 0:01:23]} 40. Ne4+ {[%clk 0:00:54]}  Ke5 {[%clk 0:01:23]} 41. d6 {[%clk 0:00:53]}  Ra3+ {[%clk 0:01:24]} 42. Ke2 {[%clk 0:00:52]}  Kxe4 {[%clk 0:01:24]} 43. d7 {[%clk 0:00:50]}  Re3+ {[%clk 0:01:24]} 44. Kf2 {[%clk 0:00:43]}  Rd3 {[%clk 0:01:25]} 45. Re1+ {[%clk 0:00:38]}  Kf4 {[%clk 0:01:25]} 46. Re7 {[%clk 0:00:32]}  Rd2+ {[%clk 0:01:25]} 47. Ke1 {[%clk 0:00:31]}  Rd4 {[%clk 0:01:25]} 48. Ke2 {[%clk 0:00:31]}  Rd5 {[%clk 0:01:23]} 49. g3+ {[%clk 0:00:24]}  Kxg4 {[%clk 0:01:22]} 50. Ke3 {[%clk 0:00:24]}  Kf5 {[%clk 0:01:23]} 51. g4+ {[%clk 0:00:20]}  Kf6 {[%clk 0:01:23]} 52. Rh7 {[%clk 0:00:20]}  Kg6 {[%clk 0:01:22]} 53. Re7 {[%clk 0:00:20]}  Kf6 {[%clk 0:01:23]} 54. Rh7 {[%clk 0:00:20]}  Kg6 {[%clk 0:01:23]} 55. Rh8 {[%clk 0:00:21]}  Rxd7 {[%clk 0:01:22]} 56. Ra8 {[%clk 0:00:21]}  Rd6 {[%clk 0:01:22]} 57. Ke4 {[%clk 0:00:22]}  Rb6 {[%clk 0:01:21]} 58. Kd5 {[%clk 0:00:22]}  Rxb4 {[%clk 0:01:21]} 59. Rxa6+ {[%clk 0:00:22]}  Kg5 {[%clk 0:01:21]} 60. Kc5 {[%clk 0:00:23]} 1/2-1/2


[Site "https://www.chess.com"]